Cogmind - Beta 12 X6 @@@ ROGUE MODE // 2023.02.23 @ 21:34:59 Player: ArabianSandBoa Result: Destroyed by as-47146 with Assembled Blade Performance ------------- Evolutions (0) 0 Regions Visited (4) 800 Robots Destroyed (26) 130 Value Destroyed (509) 509 Prototype IDs (3) 60 Alien Tech Used (0) 0 Bonus (-3) -3 TOTAL SCORE: 1496 Bonus ------- Friendly Fire -3 Cogmind --------- Core Integrity 0/250 Matter 290/300 Energy 110/125 System Corruption 6% Temperature Cool (81) Movement Rolling (200) Ox8 Location -9/Mines Parts ------- > --- POWER (1) -------- Light Ion Engine > --- PROPULSION (2) --- Wheel > --- UTILITY (2) ------ Improved Heat Sink Huge Storage Unit > --- WEAPON (2) ------- Spread Laser Spread Laser > --- INVENTORY (25) --- Improved Treads Improved Treads Improved Treads Improved Treads Wheel Improved Heat Sink Humpback Humpback Structural Scanner Sensor Array Transport Network Coupler Targeting Computer Targeting Computer Targeting Computer Targeting Computer Utility Shielding Light Armor Plating Shield Generator Shield Generator EM Pulse Gun Heavy Assault Rifle Peak State ------------ > --- POWER ------------ Light Ion Engine > --- PROPULSION ------- Improved Treads Improved Treads > --- UTILITY ---------- Improved Heat Sink Huge Storage Unit > --- WEAPON ----------- Spread Laser Spread Laser > --- INVENTORY -------- Light Treads Improved Treads Improved Treads Wheel Wheel Wheel High-capacity Storage Unit High-capacity Storage Unit Structural Scanner Sensor Array Transport Network Coupler Targeting Computer Targeting Computer Targeting Computer Targeting Computer Utility Shielding Light Armor Plating Shield Generator Shield Generator EM Pulse Gun Spread Laser Light Assault Rifle Light Assault Rifle Heavy Assault Rifle [Rating: 16] Favorites ----------- Power Ion Engine Engine Ion Engine Propulsion Improved Treads Treads Improved Treads Leg Aluminum Leg Wheel Wheel Utility Huge Storage Unit Device Structural Scanner Storage Huge Storage Unit Protection Light Armor Plating Weapon Spread Laser Energy Gun Spread Laser Ballistic Gun Light Assault Rifle Build | -11 -10 -10 -10 -9 ------- Run | Jun Mat Min Exi Min Slots Evolved . | . . . . . Power . | . . . . . Propulsion . | . . . . . Utility . | . . . . . Weapon . | . . . . . Parts Attached 21 | 2 12 2 2 3 Power 2 | . 1 1 . . Engine 2 | . 1 1 . . Core . | . . . . . Reactor . | . . . . . Propulsion 8 | 2 4 . 2 . Treads 4 | . 4 . . . Leg . | . . . . . Wheel 4 | 2 . . 2 . Hover . | . . . . . Flight . | . . . . . Utility 6 | . 3 1 . 2 Device 3 | . 1 1 . 1 Storage 2 | . 2 . . . Processor . | . . . . . Hackware . | . . . . . Protection 1 | . . . . 1 Artifact . | . . . . . Weapon 5 | . 4 . . 1 Energy Gun 3 | . 2 . . 1 Energy Cannon . | . . . . . Ballistic Gun 2 | . 2 . . . Ballistic Cannon . | . . . . . Launcher . | . . . . . Special Weapon . | . . . . . Impact Weapon . | . . . . . Slashing Weapon . | . . . . . Piercing Weapon . | . . . . . Special Melee Weapon . | . . . . . Unidentified Prototypes . | . . . . . Parts Lost 7 | . 4 1 . 2 Power 2 | . 1 1 . . Propulsion 2 | . 1 . . 1 Utility . | . . . . . Weapon 3 | . 2 . . 1 Highest Loss Streak 3 | . 3 1 . 2 To Critical Strikes 2 | . 1 1 . . Average Slot Usage (%) 95 | . 89 99 100 88 Engine 11 | . 8 13 14 14 Treads 22 | . 21 28 16 . Wheel 5 | . 6 . 11 18 Device 12 | . 10 14 14 9 Storage 14 | . 14 14 14 14 Energy Gun 20 | . 9 28 28 26 Ballistic Gun 6 | . 18 . . . Naked Turns . | . . . . . Heaviest Build 92 | 14 92 92 90 92 Greatest Support 46 | 20 46 46 46 20 Greatest Overweight (x) 8 | . 8 1 4 8 Average Overweight (x) 1 | . 2 1 2 5 Largest Inventory Capacity 25 | 8 25 25 25 25 Average Capacity 24 | 8 24 25 25 25 Most Carried 25 | 6 17 25 25 24 Average Carried 16 | 5 9 18 23 23 Final Capacity 25 | 8 25 25 25 25 Final Carried 25 | 4 17 25 24 23 Class Distribution -------------------- 100% | Mutant Dominant Class ---------------- Mutant | -10/Materials Mutant | -10/Mines Mutant | -10/Exiles Mutant | -9/Mines Resources | -11 -10 -10 -10 -9 ----------- Run | Jun Mat Min Exi Min Matter Collected 537 | 200 222 70 . 45 Remotely . | . . . . . Salvage Created 692 | . 566 117 . 9 Parts 42 | . 34 8 . . Haulers Intercepted 1 | . 1 . . . Recyclers Shooed 1 | . 1 . . . Parts Field Recycled . | . . . . . Retrieved Matter . | . . . . . Parts Self-Destructed . | . . . . . Prevented . | . . . . . Kills | -11 -10 -10 -10 -9 ------- Run | Jun Mat Min Exi Min Combat Hostiles Destroyed 24 | . 16 6 . 2 Guns 24 | . 16 6 . 2 Classes Destroyed 8 | . 6 1 . 1 Worker 1 | . 1 . . . Hauler 1 | . 1 . . . Recycler 1 | . 1 . . . Watcher 1 | . 1 . . . Swarmer 12 | . 9 3 . . Grunt 9 | . 7 2 . . Sentry 1 | . . 1 . . Assembled 2 | . . . . 2 Best Kill Streak 5 | . 5 3 . 2 Combat Bots Only 5 | . 5 3 . 2 Max Kills in Single Turn 1 | . 1 1 . 1 Gunslinging . | . . . . . Exploded . | . . . . . Melee . | . . . . . Uniques/NPCs Destroyed . | . . . . . Combat | -11 -10 -10 -10 -9 -------- Run | Jun Mat Min Exi Min Damage Taken 1249 | . 795 241 . 213 Core 281 | . 162 39 . 80 Absorbed by Shields . | . . . . . Core Remaining (%) 100 | 100 . . . . Volleys Fired 85 | . 64 12 . 9 Largest 2 | . 2 2 . 2 Hottest 130 | . 130 130 . 130 Shots Fired 170 | . 128 24 . 18 Gun 170 | . 128 24 . 18 Cannon . | . . . . . Launcher . | . . . . . Special . | . . . . . Kinetic 98 | . 98 . . . Thermal 52 | . 10 24 . 18 Explosive . | . . . . . Electromagnetic 20 | . 20 . . . Robot Hit Streak 13 | . 13 11 . 8 Robot Miss Streak 9 | . 6 6 . 9 Penetration Max . | . . . . . Secondary Targets 4 | . 2 1 . 1 Max Gunslinging Chain 1 | . 1 1 . 1 Shots Hit Robots 125 | . 88 22 . 15 Core Hits 78 | . 37 25 . 16 Critical Kills . | . . . . . Critical Parts Destroyed 1 | . 1 . . . Critical Strikes 2 | . 2 . . . Destroy 1 | . 1 . . . Corrupt 1 | . 1 . . . Melee Attacks . | . . . . . Impact . | . . . . . Slashing . | . . . . . Piercing . | . . . . . Sneak Attacks . | . . . . . Combat Hostiles . | . . . . . Follow-up Attacks . | . . . . . Damage Inflicted 1358 | . 893 293 . 172 Guns 1315 | . 850 293 . 172 Cannons . | . . . . . Explosions 43 | . 43 . . . Melee . | . . . . . Ramming . | . . . . . Kinetic 633 | . 633 . . . Thermal 577 | . 112 293 . 172 Explosive . | . . . . . Electromagnetic 148 | . 148 . . . Impact . | . . . . . Slashing . | . . . . . Piercing . | . . . . . Highest Corruption 6 | . . . . 6 Average Corruption 5 | . . . . 5 Corruption Purged . | . . . . . Corruption Blocked . | . . . . . Effects 3 | . . . . 3 Message Errors 1 | . . . . 1 Matter Fused 2 | . . . . 2 Overload Shots . | . . . . . Overflow Damage 1 | . 1 . . . Projectiles . | . . . . . Explosions 1 | . 1 . . . Melee . | . . . . . Knockbacks . | . . . . . Impact . | . . . . . Kinetic . | . . . . . Secondary . | . . . . . Self-Inflicted Damage . | . . . . . Shots . | . . . . . Rammed . | . . . . . Targets Rammed . | . . . . . Kicked . | . . . . . Crushed . | . . . . . Highest Temperature 351 | . 236 351 . 312 Average Temperature 114 | . 66 145 . 145 Received Heat Transfer 249 | . 144 105 . . Siege Activations . | . . . . . Robots Corrupted . | . . . . . Combat Hostiles . | . . . . . Parts Fried . | . . . . . Impact Corruptions . | . . . . . Robots Melted . | . . . . . Combat Hostiles . | . . . . . Parts Melted . | . . . . . Heat Transferred 725 | . 130 380 . 215 Parts Sabotaged . | . . . . . Parts Stolen . | . . . . . Parts Stripped . | . . . . . Power Chain Reactions 1 | . 1 . . . Missiles Intercepted . | . . . . . Alert | -11 -10 -10 -10 -9 ------- Run | Jun Mat Min Exi Min Peak Influence 263 | . 263 95 . . Initial . | . . . . . Average 61 | . 89 38 . . Maximum Alert Level 1 | . 1 . . . Low Security (%) 96 | 100 92 100 . 100 Level 1 3 | . 7 . . . Level 2 . | . . . . . Level 3 . | . . . . . Level 4 . | . . . . . Level 5 . | . . . . . High Security . | . . . . . Max Security . | . . . . . Squads Dispatched 3 | . 3 . . . Investigation 1 | . 1 . . . Extermination . | . . . . . Reinforcement 2 | . 2 . . . Assault . | . . . . . Garrison . | . . . . . Intercept . | . . . . . Searches Triggered . | . . . . . Construction Impeded . | . . . . . Haulers Reinforced . | . . . . . Active Scanning Responses . | . . . . . Cargo Convoy Interrupts . | . . . . . Stealth | -11 -10 -10 -10 -9 --------- Run | Jun Mat Min Exi Min Distress Signals 2 | . 2 . . . Communications Jammed . | . . . . . Distress Signals . | . . . . . Times Spotted 36 | . 26 7 . 3 Peak Tracking Total 7 | . 7 2 . 1 Tactical Retreats 2 | . 2 . . . Traps | -11 -10 -10 -10 -9 ------- Run | Jun Mat Min Exi Min Traps Triggered 1 | . 1 . . . Indirectly . | . . . . . Trap Hack Attempts . | . . . . . Triggered . | . . . . . Disarmed . | . . . . . Reprogrammed . | . . . . . Reused . | . . . . . Traps Extracted . | . . . . . Installed . | . . . . . Triggered . | . . . . . Machines | -11 -10 -10 -10 -9 ---------- Run | Jun Mat Min Exi Min Machines Disabled . | . . . . . Max in Single Turn . | . . . . . Machines Repaired . | . . . . . Machines Sabotaged . | . . . . . Overloaded Fab Kills . | . . . . . Hacking | -11 -10 -10 -10 -9 --------- Run | Jun Mat Min Exi Min Machines Accessed 6 | . 6 . . . Terminals 5 | . 5 . . . Fabricators . | . . . . . Repair Stations . | . . . . . Recycling Units 1 | . 1 . . . Scanalyzers . | . . . . . Garrison Access . | . . . . . Total Hacks 25 | . 25 . . . Successful 14 | . 14 . . . Failed 11 | . 11 . . . Catastrophic 1 | . 1 . . . Database Lockouts . | . . . . . Manual 14 | . 14 . . . Terminals 23 | . 23 . . . Fabricators . | . . . . . Repair Stations . | . . . . . Recycling Units 2 | . 2 . . . Scanalyzers . | . . . . . Garrison Access . | . . . . . Terminal Hacks 11 | . 11 . . . Robot Analysis 5 | . 5 . . . Prototype ID Bank 2 | . 2 . . . Emergency Access Points 1 | . 1 . . . Locate Traps 1 | . 1 . . . Registered Components 1 | . 1 . . . Zone Layout 1 | . 1 . . . Fabricator Hacks . | . . . . . Repair Station Hacks . | . . . . . Recycling Unit Hacks 1 | . 1 . . . Report Inventory 1 | . 1 . . . Scanalyzer . | . . . . . Garrison Access Hacks . | . . . . . Unauthorized Hacks 2 | . 2 . . . Terminals 1 | . 1 . . . Botnet 1 | . 1 . . . Fabricators . | . . . . . Repair Stations . | . . . . . Recycling Units 1 | . 1 . . . Reject 1 | . 1 . . . Scanalyzers . | . . . . . Garrison Access . | . . . . . Data Cores Recovered . | . . . . . Used . | . . . . . Hacking Detections 6 | . 6 . . . Full Trace Events . | . . . . . Feedback Events . | . . . . . Feedback Blocked . | . . . . . Robot Schematics Acquired . | . . . . . Robots Built . | . . . . . Authchips . | . . . . . Time . | . . . . . Total Robot Build Rating . | . . . . . Part Schematics Acquired . | . . . . . Parts Built . | . . . . . Authchips . | . . . . . Time . | . . . . . Total Part Build Rating . | . . . . . Parts Repaired . | . . . . . Time . | . . . . . Parts Recycled . | . . . . . Recycled Matter . | . . . . . Retrieved Matter . | . . . . . Retrieved Components . | . . . . . Parts Scanalyzed . | . . . . . Part Schematics Acquired . | . . . . . Parts Damaged . | . . . . . Bothacking | -11 -10 -10 -10 -9 ------------ Run | Jun Mat Min Exi Min Used RIF Installer . | . . . . . Robots Hacked . | . . . . . Non-combat . | . . . . . Combat . | . . . . . Robot Hacks Applied . | . . . . . Relay Couplers Released . | . . . . . Fabnet Peak Effective % . | . . . . . Robots Rewired . | . . . . . Allies Hacked . | . . . . . Hacks Repelled . | . . . . . Allies | -11 -10 -10 -10 -9 -------- Run | Jun Mat Min Exi Min Total Allies . | . . . . . Largest Group . | . . . . . Highest-Rated Group . | . . . . . Highest-Rated Ally . | . . . . . Total Orders . | . . . . . Ally Attacks . | . . . . . Total Damage . | . . . . . Kills . | . . . . . Allies Corrupted . | . . . . . Allies Melted . | . . . . . Intel | -11 -10 -10 -10 -9 ------- Run | Jun Mat Min Exi Min Robot Analysis Total 5 | . 5 . . . Derelict Logs Recovered . | . . . . . Drone Launches . | . . . . . Drone Recoveries . | . . . . . Exploration | -11 -10 -10 -10 -9 ------------- Run | Jun Mat Min Exi Min Turns Passed 3278 | 4 1232 1233 710 99 Spaces Moved 1222 | 1 362 463 374 22 Core . | . . . . . Treads 876 | . 233 463 180 . Legs . | . . . . . Wheels 346 | 1 129 . 194 22 Hover . | . . . . . Flight . | . . . . . Fastest Speed 80 | 80 80 240 140 140 Average Speed 219 | 80 230 240 188 167 Slowest Speed 320 | 80 320 240 240 200 Overloaded Moves . | . . . . . Propulsion Burnouts . | . . . . . Robots Hopped . | . . . . . Cave-ins Triggered . | . . . . . Exploration Rate (%) 50 | 2 62 94 87 5 Regions Visited 4 Branch Regions 3 Pre-discovered Areas . | . . . . . Known Exits Taken . | . . . . . Unknown Exits Taken 4 | 1 1 1 1 . Scrap Searched 1 | . . 1 . . Spaces Dug . | . . . . . Terrain Destroyed 3 | . 3 . . . Melee . | . . . . . Projectile . | . . . . . AOE 3 | . 3 . . . Terrain Rammed . | . . . . . Walls Destroyed . | . . . . . Machines Disabled . | . . . . . Actions | -11 -10 -10 -10 -9 --------- Run | Jun Mat Min Exi Min Total 1657 | 4 645 561 382 65 Wait 295 | . 188 76 . 31 Move 1218 | . 361 462 373 22 Hop . | . . . . . Pick Up 27 | . 16 9 2 . Fast Attach 3 | . 3 . . . Attach 6 | . 4 1 . 1 Detach 1 | . 1 . . . Swap 12 | 2 5 1 2 2 Drop 10 | 2 3 . 5 . Fire 85 | . 64 12 . 9 Melee . | . . . . . Ram . | . . . . . Kick . | . . . . . Crush . | . . . . . Escape Stasis . | . . . . . Rewire . | . . . . . Trap . | . . . . . Miscellaneous . | . . . . . Route ------- -11/Junkyard -10/Materials (discovered 3 exits: [*Mat x2] / [*Min]) -10/Mines (discovered 3 exits: [*Mat x2] / [*Exi]) -10/Exiles -9/Mines History --------- Turn | Location | Event 5 | -11/Junkyard | Discovered new exit (range 0) 5 | -11/Junkyard | Entered Materials 304 | -10/Materials | Core integrity fell below 50% 323 | -10/Materials | Lost 3 parts (1p1n1w) 325 | -10/Materials | Build established: Mutant 435 | -10/Materials | Discovered new exit (range 16) 642 | -10/Materials | Discovered new exit (range 14) 1217 | -10/Materials | Discovered new exit (range 6) 1237 | -10/Materials | Entered Mines 1349 | -10/Mines | Discovered new exit (range 5) 1559 | -10/Mines | Discovered new exit (range 15) 2138 | -10/Mines | Core integrity fell below 20% 2309 | -10/Mines | Joined a pair of Derelicts in attacking an 0b10 outpost 2460 | -10/Mines | Deemed a non-threat by the Exiles lab entrance 2460 | -10/Mines | Discovered new exit (range 5) 2470 | -10/Mines | Entered Exiles 2470 | -10/Exiles | Found Exiles lab abandoned 3163 | -10/Exiles | Discovered new exit (range 14) 3180 | -10/Exiles | Entered Mines 3181 | -9/Mines | Assembled infested the area 3186 | -9/Mines | Assisted by a Guerilla fighting off Assembled 3279 | -9/Mines | Destroyed by as-47146 with Assembled Blade Last Messages --------------- coming from, and they're closing on this area, come on!" 03188_ K-01 Serf collects debris. 03193_ K-01 Serf system corrupted by crushing effect. 03193_ K-01 Serf knocked back. 03194_ K-01 Serf system terminally corrupted. 03194_ K-01 Serf collects debris. 03210_ as-33098 destroyed. 03210_ Switching to secondary target: as-13927. 03215_ Wheel destroyed. 03215_ System corrupted by crushing effect (+2). 03218_ Spread Laser destroyed. 03218_ System corrupted by crushing effect (+4). 03224_ C